fUSD/lending_fUSD_20240708
["ID","MTS","AMOUNT","RATE_DAILY","PERIOD"]
[331511498,1720445009207,-652.19,0.00053698,120]
[331511499,1720445009298,-500.0,0.00053698,120]
[331511500,1720445009393,-1216.89,0.00053698,120]
[331511501,1720445009499,-500.0,0.00053698,120]
[331511502,1720445009587,-1765.23,0.00053698,120]
[331511503,1720445009705,-500.0,0.00053698,120]
[331511504,1720445009809,-5055.86,0.00053698,120]
[331511505,1720445009909,-500.0,0.00053698,120]
[331511506,1720445010021,-711.2,0.00053698,120]
[331511507,1720445010105,-2570.12,0.00053698,120]
[331511508,1720445010191,-2420.66,0.00053698,120]
[331511509,1720445010306,-2264.16,0.00053698,120]
[331511510,1720445010416,-672.24,0.00053698,120]
[331511511,1720445010501,-3711.44,0.00053698,120]
[331511512,1720445010614,-3195.91,0.00053698,120]
[331511513,1720445010707,-2590.75,0.00053698,120]
[331511514,1720445010819,-822.01,0.00053698,120]
[331511515,1720445010905,-3178.37,0.00053698,120]
[331511516,1720445010997,-500.0,0.00053698,120]
[331511517,1720445011082,-1501.03,0.00053698,120]
[331511518,1720445011162,-4652.58,0.00053698,120]
[331511519,1720445011241,-4176.17,0.00053698,120]
[331511520,1720445011324,-607.4,0.00053698,120]
[331511521,1720445011420,-1039.34,0.00053698,120]
[331511522,1720445011501,-517.37,0.00053698,120]
[331511523,1720445011581,-724.29,0.00053698,120]
[331511524,1720445011662,-1620.57,0.00053698,120]
[331511525,1720445011741,-500.0,0.00053698,120]
[331511526,1720445011822,-1793.43,0.00053698,120]
[331511527,1720445011900,-12165.5,0.00053698,120]
[331511528,1720445011979,-976.96,0.00053698,120]
[331511529,1720445012056,-2857.78,0.00053698,120]
[331511530,1720445012133,-935.81,0.00053698,120]
[331511531,1720445012208,-794.19,0.00053698,120]
[331511532,1720445012283,-1096.71,0.00053698,120]
[331511533,1720445012354,-812.1,0.00053698,120]
[331511534,1720445012428,-2680.32,0.00053698,120]
[331511535,1720445012503,-1019.65,0.00053698,120]
[331511536,1720445012585,-1152.98,0.00053698,120]
[331511537,1720445012667,-500.0,0.00053698,120]
[331511538,1720445012746,-7204.83,0.00053698,120]
[331511539,1720445012820,-2326.97,0.00053698,120]
[331511540,1720445012893,-2038.8,0.00053698,120]
[331511541,1720445012969,-1237.99,0.00053698,120]
[331511542,1720445013050,-671.15,0.00053698,120]
[331511543,1720445013142,-507.99,0.00053698,120]
[331511544,1720445013236,-500.0,0.00053698,120]
[331511545,1720445013323,-943.16,0.00053698,120]
[331511546,1720445013412,-5931.18,0.00053698,120]
[331511547,1720445013502,-4626.82,0.00053698,120]
[331511548,1720445013592,-2327.97,0.00053698,120]
[331511549,1720445013680,-789.69,0.00053698,120]
[331511550,1720445013764,-1802.66,0.00053698,120]
[331511551,1720445013848,-2045.63,0.00053698,120]
[331511552,1720445013937,-2179.21,0.00053698,120]
[331511553,1720445014023,-679.68,0.00053698,120]
[331511554,1720445014113,-500.0,0.00053698,120]
[331511555,1720445014204,-5851.04,0.00053698,120]
[331511556,1720445014294,-790.26,0.00053698,120]
[331511557,1720445014384,-3857.14,0.00053698,120]
[331511558,1720445014472,-918.0,0.00053698,120]
[331511559,1720445014560,-1071.27,0.00053698,120]
[331511560,1720445014650,-500.0,0.00053698,120]
[331511561,1720445014740,-971.7,0.00053698,120]
[331511562,1720445014830,-9335.91,0.00053698,120]
[331511563,1720445014919,-500.0,0.00053698,120]
[331511564,1720445015015,-1080.21,0.00053698,120]
[331511565,1720445015107,-1237.8,0.00053698,120]
[331511566,1720445015199,-500.0,0.00053698,120]
[331511567,1720445015292,-500.0,0.00053698,120]
[331511568,1720445015385,-500.0,0.00053698,120]
[331511569,1720445015477,-4880.04,0.00053698,120]
[331511570,1720445015568,-836.04,0.00053698,120]
[331511571,1720445015660,-2472.65,0.00053698,120]
[331511572,1720445015751,-1021.84,0.00053698,120]
[331511573,1720445015840,-550.11,0.00053698,120]
[331511574,1720445015930,-500.0,0.00053698,120]
[331511575,1720445016023,-1033.51,0.00053698,120]
[331511576,1720445016111,-500.0,0.00053698,120]
[331511577,1720445016202,-820.16,0.00053698,120]
[331511578,1720445016297,-1695.51,0.00053698,120]
[331511579,1720445016383,-511.6,0.00053698,120]
[331511580,1720445016469,-3132.94,0.00053698,120]
[331511581,1720445016553,-1913.66,0.00053698,120]
[331511582,1720445016641,-4157.78,0.00053698,120]
[331511583,1720445016726,-1698.07,0.00053698,120]
[331511584,1720445016806,-652.08,0.00053698,120]
[331511585,1720445016889,-561.37435518,0.00053698,120]
[331511586,1720445016974,-637.31,0.00053698,120]
[331511587,1720445017057,-572.94,0.00053698,120]
[331511588,1720445017339,-3335.79,0.00053698,120]
[331511589,1720445017428,-1910.14,0.00053698,120]
[331511590,1720445017514,-2108.8,0.00053698,120]
[331511591,1720445017606,-694.53,0.00053698,120]
[331511592,1720445017695,-461.55564366,0.00053698,120]
[331511593,1720445017778,-1154.16,0.00053698,120]
[331511594,1720445017859,-1564.34,0.00053698,120]
[331511595,1720445017942,-3033.38,0.00053698,120]
[331511596,1720445018026,-2059.4,0.00053698,120]
[331511597,1720445018125,-500.0,0.00053698,120]
[331511598,1720445018226,-989.58,0.00053698,120]
[331511599,1720445018322,-2399.84,0.00053698,120]
[331511600,1720445018413,-500.0,0.00053698,120]
[331511601,1720445018503,-1672.29,0.00053698,120]
[331511602,1720445018587,-500.0,0.00053698,120]
[331511603,1720445018674,-1604.31,0.00053698,120]
[331511604,1720445018759,-500.0,0.00053698,120]
[331511605,1720445018846,-245.54271292,0.00053698,120]
[331511606,1720445018931,-500.0,0.00053698,120]
[331511607,1720445019017,-2417.35,0.00053698,120]
[331511608,1720445019111,-1416.43,0.00053698,120]
[331511609,1720445019205,-691.6,0.00053698,120]
[331511610,1720445019303,-972.54,0.00053698,120]
[331511611,1720445019400,-500.0,0.00053698,120]
[331511612,1720445019499,-1198.2,0.00053698,120]
[331511613,1720445019599,-992.98,0.00053698,120]
[331511614,1720445019696,-1035.8,0.00053698,120]
[331511615,1720445019793,-542.92,0.00053698,120]
[331511616,1720445019894,-3821.85,0.00053698,120]
[331511617,1720445019989,-971.56,0.00053698,120]
[331511618,1720445020086,-587.73,0.00053698,120]
[331511619,1720445020183,-1317.09,0.00053698,120]
[331511620,1720445020282,-1389.08,0.00053698,120]
[331511621,1720445020377,-1639.49,0.00053698,120]
[331511622,1720445020472,-867.82,0.00053698,120]
[331511623,1720445020567,-500.0,0.00053698,120]
[331511624,1720445020654,-500.0,0.00053698,120]
[331511625,1720445020748,-500.0,0.00053698,120]
[331511626,1720445020843,-615.39,0.00053698,120]
[331511627,1720445020936,-2430.97,0.00053698,120]
[331511628,1720445021035,-500.0,0.00053698,120]
[331511629,1720445021134,-500.0,0.00053698,120]
[331511630,1720445021229,-2066.55,0.00053698,120]
[331511631,1720445021322,-921.41,0.00053698,120]
[331511632,1720445021414,-548.85,0.00053698,120]
[331511633,1720445021506,-500.0,0.00053698,120]
[331511634,1720445021601,-1045.8,0.00053698,120]
[331511635,1720445021692,-2785.91,0.00053698,120]
[331511636,1720445021783,-3346.99,0.00053698,120]
[331511637,1720445021874,-613.69,0.00053698,120]
[331511638,1720445021966,-500.0,0.00053698,120]
[331511639,1720445022057,-2884.68,0.00053698,120]
[331511640,1720445022149,-1223.29,0.00053698,120]
[331511641,1720445022241,-521.67,0.00053698,120]
[331511642,1720445022331,-1430.22,0.00053698,120]
[331511643,1720445022419,-404.65,0.00053698,120]
[331511644,1720445022514,-611.61,0.00053698,120]
[331511645,1720445022614,-1451.36,0.00053698,120]
[331511646,1720445022706,-729.84,0.00053698,120]
[331511647,1720445022796,-919.43,0.00053698,120]
[331511648,1720445022884,-1252.38,0.00053698,120]
[331511649,1720445022977,-902.66,0.00053698,120]
[331511650,1720445023074,-1130.53,0.00053698,120]
[331511651,1720445023175,-1710.79,0.00053698,120]
[331511652,1720445023274,-1387.34,0.00053698,120]
[331511653,1720445023367,-558.45,0.00053698,120]
[331511654,1720445023460,-595.41,0.00053698,120]
[331511655,1720445023554,-801.29,0.00053698,120]
[331511656,1720445023649,-553.02996943,0.00053698,120]
[331511657,1720445023743,-681.95,0.00053698,120]
[331511658,1720445023839,-647.19,0.00053698,120]
[331511659,1720445023938,-500.0,0.00053698,120]
[331511660,1720445024036,-500.0,0.00053698,120]
[331511661,1720445024134,-920.91,0.00053698,120]
[331511662,1720445024231,-809.57,0.00053698,120]
[331511663,1720445024328,-866.07,0.00053698,120]
[331511664,1720445024420,-508.51,0.00053698,120]
[331511665,1720445024517,-1342.46,0.00053698,120]
[331511666,1720445024617,-471.19226227,0.00053698,120]
[331511667,1720445024712,-500.0,0.00053698,120]
[331511668,1720445024807,-669.08,0.00053698,120]
[331511669,1720445024902,-924.87,0.00053698,120]
[331511670,1720445025000,-500.0,0.00053698,120]
[331511671,1720445025099,-1526.59,0.00053698,120]
[331511672,1720445025196,-2651.63,0.00053698,120]
[331511673,1720445025291,-500.0,0.00053698,120]
[331511674,1720445025387,-2744.63,0.00053698,120]
[331511675,1720445025483,-2267.0,0.00053698,120]
[331511676,1720445025582,-574.0,0.00053698,120]
[331511677,1720445025680,-775.01,0.00053698,120]
[331511678,1720445025779,-500.0,0.00053698,120]
[331511679,1720445025878,-1695.04,0.00053698,120]
[331511680,1720445025975,-202.84852497,0.00053698,120]
[331511681,1720445026071,-500.0,0.00053698,120]
[331511682,1720445026167,-1245.56,0.00053698,120]
[331511683,1720445026265,-785.15,0.00053698,120]
[331511684,1720445026365,-1245.98,0.00053698,120]
[331511685,1720445026470,-1155.34,0.00053698,120]
[331511686,1720445026573,-500.0,0.00053698,120]
[331511687,1720445026676,-500.0,0.00053698,120]
[331511688,1720445026772,-555.03,0.00053698,120]
[331511689,1720445026863,-803.39,0.00053698,120]
[331511690,1720445026954,-306.78929261,0.00053698,120]
[331511691,1720445027046,-1305.54,0.00053698,120]
[331511692,1720445027328,-949.65,0.00053698,120]
[331511693,1720445027420,-500.0,0.00053698,120]
[331511694,1720445027511,-500.0,0.00053698,120]
[331511695,1720445027609,-1347.23,0.00053698,120]
[331511696,1720445027706,-568.39,0.00053698,120]
[331511697,1720445027802,-500.0,0.00053698,120]
[331511698,1720445027895,-784.35,0.00053698,120]
[331511699,1720445027991,-796.74,0.00053698,120]
[331511700,1720445028089,-361.05697718,0.00053698,120]
[331511701,1720445028190,-838.64,0.00053698,120]
[331511702,1720445028291,-500.0,0.00053698,120]
[331511703,1720445028385,-739.18,0.00053698,120]
[331511704,1720445028478,-995.21,0.00053698,120]
[331511705,1720445028572,-1155.36,0.00053698,120]
[331511706,1720445028666,-751.81,0.00053698,120]
[331511707,1720445028761,-1142.72,0.00053698,120]
[331511708,1720445028853,-2126.32,0.00053698,120]
[331511709,1720445028953,-1163.78,0.00053698,120]
[331511710,1720445029049,-743.53,0.00053698,120]
[331511711,1720445029143,-934.66,0.00053698,120]
[331511712,1720445029237,-995.22,0.00053698,120]
[331511713,1720445029333,-784.36,0.00053698,120]
[331511714,1720445029429,-1579.18,0.00053698,120]
[331511715,1720445029521,-1658.26,0.00053698,120]
[331511716,1720445029616,-500.0,0.00053698,120]
[331511717,1720445029706,-500.0,0.00053698,120]
[331511718,1720445029797,-580.63,0.00053698,120]
[331511719,1720445029887,-693.77,0.00053698,120]
[331511720,1720445029980,-633.12,0.00053698,120]
[331511721,1720445030075,-1079.99,0.00053698,120]
[331511722,1720445030171,-510.79,0.00053698,120]
[331511723,1720445030264,-500.0,0.00053698,120]
[331511724,1720445030357,-534.95,0.00053698,120]
[331511725,1720445030449,-2055.98,0.00053698,120]
[331511726,1720445030545,-652.14,0.00053698,120]
[331511727,1720445030646,-808.16,0.00053698,120]
[331511728,1720445030742,-594.66641228,0.00053698,120]
[331511729,1720445030834,-837.72,0.00053698,120]
[331511730,1720445030927,-361.16918012,0.00053698,120]
[331511731,1720445031020,-974.55,0.00053698,120]
[331511732,1720445031110,-500.0,0.00053698,120]
[331511733,1720445031198,-668.71,0.00053698,120]
[331511734,1720445031296,-918.92,0.00053698,120]
[331511735,1720445031397,-733.46,0.00053698,120]
[331511736,1720445031504,-500.0,0.00053698,120]
[331511737,1720445031611,-843.38,0.00053698,120]
[331511738,1720445031703,-777.5,0.00053698,120]
[331511739,1720445031793,-527.4244342,0.00053698,120]
[331511740,1720445031881,-500.0,0.00053698,120]
[331511741,1720445031974,-852.37,0.00053698,120]
[331511742,1720445032068,-1186.97,0.00053698,120]
[331511743,1720445032156,-1241.83,0.00053698,120]
[331511744,1720445032245,-807.64,0.00053698,120]
[331511745,1720445032332,-443.39421082,0.00053698,120]
[331511746,1720445032419,-803.38,0.00053698,120]
[331511747,1720445032507,-657.3,0.00053698,120]
[331511748,1720445032595,-1355.78,0.00053698,120]
[331511749,1720445032683,-500.0,0.00053698,120]
[331511750,1720445032771,-500.0,0.00053698,120]
[331511751,1720445032858,-500.0,0.00053698,120]
[331511752,1720445032948,-500.0,0.00053698,120]
[331511753,1720445033039,-500.0,0.00053698,120]
[331511754,1720445033142,-525.31,0.00053698,120]
[331511755,1720445033241,-682.0,0.00053698,120]
[331511756,1720445033338,-500.0,0.00053698,120]
[331511757,1720445033432,-1095.38,0.00053698,120]
[331511758,1720445033522,-1081.98,0.00053698,120]
[331511759,1720445033615,-500.0,0.00053698,120]
[331511760,1720445033709,-712.75,0.00053698,120]
[331511761,1720445033800,-766.48,0.00053698,120]
[331511762,1720445033893,-989.73,0.00053698,120]
[331511763,1720445033988,-887.36,0.00053698,120]
[331511764,1720445034083,-568.6,0.00053698,120]
[331511765,1720445034180,-665.12,0.00053698,120]
[331511766,1720445034274,-500.0,0.00053698,120]
[331511767,1720445034372,-500.0,0.00053698,120]
[331511768,1720445034471,-785.44,0.00053698,120]
[331511769,1720445034567,-2486.56,0.00053698,120]
[331511770,1720445034663,-500.0,0.00053698,120]
[331511771,1720445034758,-500.0,0.00053698,120]
[331511772,1720445034855,-500.0,0.00053698,120]
[331511773,1720445034954,-500.0,0.00053698,120]
[331511774,1720445035054,-891.8,0.00053698,120]
[331511775,1720445035158,-500.0,0.00053698,120]
[331511776,1720445035261,-500.0,0.00053698,120]
[331511777,1720445035362,-608.44,0.00053698,120]
[331511778,1720445035461,-705.57,0.00053698,120]
[331511779,1720445035561,-502.79,0.00053698,120]
[331511780,1720445035664,-500.0,0.00053698,120]
[331511781,1720445035762,-605.18,0.00053698,120]
[331511782,1720445035859,-500.0,0.00053698,120]
[331511783,1720445035956,-500.0,0.00053698,120]
[331511784,1720445036052,-248.60851525,0.00053698,120]
[331511785,1720445036152,-500.0,0.00053698,120]
[331511786,1720445036245,-712.81,0.00053698,120]
[331511787,1720445036340,-534.72,0.00053698,120]
[331511788,1720445036434,-1760.36,0.00053698,120]
[331511789,1720445036536,-800.08,0.00053698,120]
[331511790,1720445036632,-500.0,0.00053698,120]
[331511791,1720445036735,-894.69,0.00053698,120]
[331511792,1720445036838,-723.54,0.00053698,120]
[331511793,1720445036933,-530.59,0.00053698,120]
[331511794,1720445037028,-839.95,0.00053698,120]
[331511795,1720445037122,-511.1,0.00053698,120]
[331511796,1720445037383,-760.52,0.00053698,120]
[331511797,1720445037475,-866.49,0.00053698,120]
[331511798,1720445037564,-500.0,0.00053698,120]
[331511799,1720445037652,-500.0,0.00053698,120]
[331511800,1720445037738,-500.0,0.00053698,120]
[331511801,1720445037823,-501.65781715,0.00053698,120]
[331511802,1720445037909,-500.0,0.00053698,120]
[331511803,1720445037997,-893.31,0.00053698,120]
[331511804,1720445038094,-500.0,0.00053698,120]
[331511805,1720445038195,-333.21939938,0.00053698,120]
[331511806,1720445038293,-500.0,0.00053698,120]
[331511807,1720445038384,-500.0,0.00053698,120]
[331511808,1720445038472,-1290.88,0.00053698,120]
[331511809,1720445038561,-585.61,0.00053698,120]
[331511810,1720445038653,-574.25,0.00053698,120]
[331511811,1720445038743,-500.0,0.00053698,120]
[331511812,1720445038831,-891.99,0.00053698,120]
[331511813,1720445038921,-518.21,0.00053698,120]
[331511814,1720445039012,-500.0,0.00053698,120]
[331511815,1720445039104,-973.06,0.00053698,120]
[331511816,1720445039199,-1101.05,0.00053698,120]
[331511817,1720445039289,-1143.52,0.00053698,120]
[331511818,1720445039380,-589.06,0.00053698,120]
[331511819,1720445039471,-729.17,0.00053698,120]
[331511820,1720445039557,-765.16,0.00053698,120]
[331511821,1720445039646,-538.46,0.00053698,120]
[331511822,1720445039730,-500.0,0.00053698,120]
[331511823,1720445039821,-577.54,0.00053698,120]
[331511824,1720445039909,-987.37,0.00053698,120]
[331511825,1720445039996,-500.0,0.00053698,120]
[331511826,1720445040085,-327.69441194,0.00053698,120]
[331511827,1720445040176,-707.5,0.00053698,120]
[331511828,1720445040273,-943.37,0.00053698,120]
[331511829,1720445040366,-584.78,0.00053698,120]
[331511830,1720445040455,-558.55,0.00053698,120]
[331511831,1720445040545,-584.31350401,0.00053698,120]
[331511832,1720445040639,-718.31,0.00053698,120]
[331511833,1720445040726,-511.83,0.00053698,120]
[331511834,1720445040814,-500.0,0.00053698,120]
[331511835,1720445040903,-500.0,0.00053698,120]
[331511836,1720445040994,-500.0,0.00053698,120]
[331511837,1720445041086,-588.46,0.00053698,120]
[331511838,1720445041176,-725.12,0.00053698,120]
[331511839,1720445041266,-1169.96,0.00053698,120]
[331511840,1720445041358,-510.12,0.00053698,120]
[331511841,1720445041449,-691.49,0.00053698,120]
[331511842,1720445041539,-500.0,0.00053698,120]
[331511843,1720445041631,-500.0,0.00053698,120]
[331511844,1720445041722,-500.0,0.00053698,120]
[331511845,1720445041809,-500.0,0.00053698,120]
[331511846,1720445041898,-736.89,0.00053698,120]
[331511847,1720445041986,-500.0,0.00053698,120]
[331511848,1720445042072,-561.83,0.00053698,120]
[331511849,1720445042162,-500.0,0.00053698,120]
[331511850,1720445042247,-500.0,0.00053698,120]
[331511851,1720445042336,-500.0,0.00053698,120]
[331511852,1720445042431,-757.16,0.00053698,120]
[331511853,1720445042521,-519.91,0.00053698,120]
[331511854,1720445042610,-747.04,0.00053698,120]
[331511855,1720445042705,-613.38,0.00053698,30]
[331511856,1720445042793,-552.79,0.00053698,120]
[331511857,1720445042880,-500.0,0.00053698,120]
[331511858,1720445042970,-591.58,0.00053698,120]
[331511859,1720445043064,-1172.19,0.00053698,120]
[331511860,1720445043166,-500.0,0.00053698,120]
[331511861,1720445043265,-1249.26,0.00053698,120]
[331511862,1720445043360,-557.8,0.00053698,120]
[331511863,1720445043451,-500.0,0.00053698,120]
[331511864,1720445043542,-500.0,0.00053698,120]
[331511865,1720445043640,-800.07,0.00053698,120]
[331511866,1720445043738,-807.07,0.00053698,120]
[331511867,1720445043838,-967.69,0.00053698,120]
[331511868,1720445043937,-583.20225688,0.00053698,120]
[331511869,1720445044029,-1110.78,0.00053698,120]
[331511870,1720445044124,-593.07,0.00053698,120]
[331511871,1720445044223,-666.97,0.00053698,120]
[331511872,1720445044319,-500.0,0.00053698,120]
[331511873,1720445044417,-663.11,0.00053698,120]
[331511874,1720445044512,-586.75,0.00053698,120]
[331511875,1720445044605,-500.0,0.00053698,120]
[331511876,1720445044700,-594.57,0.00053698,120]
[331511877,1720445044790,-500.0,0.00053698,120]
[331511878,1720445044881,-731.67,0.00053698,120]
[331511879,1720445044975,-500.0,0.00053698,120]
[331511880,1720445045067,-727.03,0.00053698,120]
[331511881,1720445045161,-500.0,0.00053698,120]
[331511882,1720445045253,-556.36,0.00053698,120]
[331511883,1720445045344,-678.58,0.00053698,120]
[331511884,1720445045435,-507.09,0.00053698,120]
[331511885,1720445045525,-828.76,0.00053698,120]
[331511886,1720445045618,-500.0,0.00053698,120]
[331511887,1720445045709,-564.32,0.00053698,120]
[331511888,1720445045802,-730.6,0.00053698,120]
[331511889,1720445045893,-500.0,0.00053698,120]
[331511890,1720445045986,-890.2,0.00053698,120]
[331511891,1720445046083,-795.04,0.00053698,120]
[331511892,1720445046175,-551.18,0.00053698,120]
[331511893,1720445046268,-500.0,0.00053698,120]
[331511894,1720445046362,-500.0,0.00053698,120]
[331511895,1720445046459,-788.58,0.00053698,120]
[331511896,1720445046557,-618.01,0.00053698,120]
[331511897,1720445046652,-638.84152989,0.00053698,120]
[331511898,1720445046754,-500.0,0.00053698,120]
[331511899,1720445046846,-500.0,0.00053698,120]
[331511900,1720445047116,-720.18,0.00053698,120]
[331511901,1720445047212,-511.48,0.00053698,120]
[331511902,1720445047304,-500.0,0.00053698,120]
[331511903,1720445047397,-633.87,0.00053698,120]
[331511904,1720445047488,-885.43,0.00053698,120]
[331511905,1720445047585,-536.5,0.00053698,120]
[331511906,1720445047680,-739.48,0.00053698,120]
[331511907,1720445047770,-500.0,0.00053698,120]
[331511908,1720445047861,-556.22,0.00053698,120]
[331511909,1720445047956,-571.12691303,0.00053698,120]
[331511910,1720445048057,-658.89,0.00053698,120]
[331511911,1720445048159,-500.0,0.00053698,120]
[331511912,1720445048259,-1110.08,0.00053698,120]
[331511913,1720445048355,-735.58,0.00053698,120]
[331511914,1720445048445,-500.0,0.00053698,120]
[331511915,1720445048541,-508.6,0.00053698,120]
[331511916,1720445048635,-398.56353749,0.00053698,120]
[331511917,1720445048727,-761.41,0.00053698,120]
[331511918,1720445048817,-757.98,0.00053698,120]
[331511919,1720445048911,-500.0,0.00053698,120]
[331511920,1720445049009,-500.0,0.00053698,120]
[331511921,1720445049106,-744.56,0.00053698,120]
[331511922,1720445049207,-820.08,0.00053698,120]
[331511923,1720445049307,-571.86,0.00053698,120]
[331511924,1720445049407,-976.88,0.00053698,120]
[331511925,1720445049503,-795.49,0.00053698,120]
[331511926,1720445049597,-633.46,0.00053698,120]
[331511927,1720445049691,-1023.57,0.00053698,120]
[331511928,1720445049784,-500.0,0.00053698,120]
[331511929,1720445049874,-732.16,0.00053698,120]
[331511930,1720445049962,-596.04,0.00053698,120]
[331511931,1720445050051,-584.19,0.00053698,120]
[331511932,1720445050140,-1250.0,0.00053698,120]
[331511933,1720445050225,-500.0,0.00053698,120]
[331511934,1720445050314,-1319.76,0.00053698,120]
[331511935,1720445050403,-500.0,0.00053698,120]
[331511936,1720445050491,-777.23,0.00053698,120]
[331511937,1720445050579,-786.03,0.00053698,120]
[331511938,1720445050669,-993.73,0.00053698,120]
[331511939,1720445050754,-857.25,0.00053698,120]
[331511940,1720445050840,-631.99,0.00053698,120]
[331511941,1720445050929,-526.26,0.00053698,120]
[331511942,1720445051017,-500.0,0.00053698,120]
[331511943,1720445051107,-834.16,0.00053698,120]
[331511944,1720445051197,-710.28,0.00053698,120]
[331511945,1720445051291,-500.0,0.00053698,120]
[331511946,1720445051387,-500.0,0.00053698,120]
[331511947,1720445051484,-500.0,0.00053698,120]
[331511948,1720445051577,-907.14,0.00053698,120]
[331511949,1720445051667,-500.0,0.00053698,120]
[331511950,1720445051751,-316.19608992,0.00053698,120]
[331511951,1720445051836,-903.08,0.00053698,120]
[331511952,1720445051919,-1205.65,0.00053698,120]
[331511953,1720445052006,-229.17302962,0.00053698,120]
[331511954,1720445052091,-575.42,0.00053698,120]
[331511955,1720445052180,-524.88,0.00053698,120]
[331511956,1720445052270,-560.0,0.00053698,120]
[331511957,1720445052359,-1266.13,0.00053698,120]
[331511958,1720445052445,-1038.93,0.00053698,120]
[331511959,1720445052535,-860.22,0.00053698,120]
[331511960,1720445052623,-302.35,0.00053698,120]
[331511961,1720445052709,-617.44,0.00053698,120]
[331511962,1720445052796,-1023.2,0.00053698,120]
[331511963,1720445052882,-844.36,0.00053698,120]
[331511964,1720445052971,-981.65,0.00053698,120]
[331511965,1720445053059,-1228.92,0.00053698,120]
[331511966,1720445053155,-726.85,0.00053698,120]
[331511967,1720445053252,-500.0,0.00053698,120]
[331511968,1720445053348,-1221.82,0.00053698,120]
[331511969,1720445053434,-908.94,0.00053698,120]
[331511970,1720445053519,-597.71,0.00053698,120]
[331511971,1720445053607,-500.0,0.00053698,120]
[331511972,1720445053696,-694.82,0.00053698,120]
[331511973,1720445053784,-1246.01,0.00053698,120]
[331511974,1720445053879,-1155.33,0.00053698,120]
[331511975,1720445053977,-1101.3,0.00053698,120]
[331511976,1720445054072,-689.02,0.00053698,120]
[331511977,1720445054164,-500.0,0.00053698,120]
[331511978,1720445054254,-500.0,0.00053698,120]
[331511979,1720445054346,-889.1,0.00053698,120]
[331511980,1720445054437,-500.0,0.00053698,120]
[331511981,1720445054529,-656.56,0.00053698,120]
[331511982,1720445054626,-940.17,0.00053698,120]
[331511983,1720445054716,-1072.11,0.00053698,120]
[331511984,1720445054804,-500.0,0.00053698,120]
[331511985,1720445054895,-1299.84,0.00053698,120]
[331511986,1720445054987,-869.62,0.00053698,120]
[331511987,1720445055078,-500.0,0.00053698,120]
[331511988,1720445055170,-929.28,0.00053698,120]
[331511989,1720445055261,-905.16,0.00053698,120]
[331511990,1720445055351,-500.0,0.00053698,120]
[331511991,1720445055438,-500.84,0.00053698,120]
[331511992,1720445055527,-716.75,0.00053698,120]
[331511993,1720445055619,-753.1,0.00053698,120]
[331511994,1720445055709,-1023.46,0.00053698,120]
[331511995,1720445055799,-302.68680945,0.00053698,120]
[331511996,1720445055892,-810.25,0.00053698,120]
[331511997,1720445055988,-943.0,0.00053698,120]